bitfinex-derivatives/quotes_SOLF0:USTF0_20250301
["timestamp","ask_amount","ask_price","bid_price","bid_amount"]
[1740845724627,10.64,141.04,140.98,1.9591]
[1740845724923,10.64,141.04,140.99,7.096]
[1740845725333,10.64,141.07,140.99,7.096]
[1740845725531,0.05015797,141.03,141.0,0.04886639]
[1740845725834,10.64,141.1,141.0,0.04886639]
[1740845726034,7.092,141.08,140.98,12.5991]
[1740845726534,7.092,141.08,141.02,7.0945]
[1740845726928,0.05015532,141.06,141.04,0.05299235]
[1740845729237,17.753,141.05,141.04,0.05299235]
[1740845731033,17.753,141.05,141.04,9.235e-05]
[1740845731942,10.66,141.05,141.04,9.235e-05]
[1740845732141,0.05015532,141.06,141.04,9.235e-05]
[1740845733250,0.05015532,141.06,141.04,7.09339235]
[1740845733746,0.05015532,141.06,141.04,9.235e-05]
[1740845735033,10.66,141.09,141.04,9.235e-05]
[1740845735644,7.093,141.05,141.04,9.235e-05]
[1740845736649,7.13988206,141.06,141.04,9.235e-05]
[1740845737247,0.04718206,141.06,141.04,9.235e-05]
[1740845738047,7.093,141.05,141.04,9.235e-05]
[1740845738245,0.04718206,141.06,141.04,9.235e-05]
[1740845738842,0.04718206,141.06,141.05,7.093]
[1740845739256,10.66,141.09,141.04,9.235e-05]
[1740845739451,10.64,141.12,141.04,9.235e-05]
[1740845739754,10.64,141.12,141.01,161.06980667]
[1740845739944,7.0908,141.1,141.07,7.0918]
[1740845740543,0.04518706,141.1,141.07,7.13767834]
[1740845740947,0.04518706,141.1,141.07,0.04567834]
[1740845741142,7.13598706,141.1,141.07,7.13757834]
[1740845741350,0.04518706,141.1,141.07,7.13757834]
[1740845741651,0.04518706,141.1,141.07,0.04567834]
[1740845742860,0.04518706,141.1,141.08,7.0915]
[1740845743253,0.04518706,141.1,141.07,0.04567834]
[1740845743450,0.04518706,141.1,141.09,7.091]
[1740845744144,0.04518706,141.1,141.08,7.0913]
[1740845744456,0.04518706,141.1,141.07,0.04567834]
[1740845744655,0.04518706,141.1,141.09,7.091]
[1740845747350,329.54189471,141.21,141.09,3.54]
[1740845747547,7.0864,141.19,141.09,10.62]
[1740845747952,7.0864,141.19,141.16,7.087]
[1740845748152,79.16610592,141.21,141.09,157.35450667]
[1740845748451,0.0462063,141.16,141.14,0.05314302]
[1740845748761,76.15460592,141.21,141.14,0.05314302]
[1740845748954,0.05355841,141.16,141.14,0.05314302]
[1740845749255,76.15460592,141.21,141.14,0.05314302]
[1740845749445,76.15460592,141.21,141.14,1.88304302]
[1740845749653,76.15460592,141.21,141.18,7.0863]
[1740845749848,76.15460592,141.21,141.14,1.8299]
[1740845750150,76.15460592,141.21,141.16,7.0875]
[1740845750348,0.04089314,141.19,141.16,0.05110482]
[1740845751251,0.04089314,141.19,141.16,7.13860482]
[1740845751554,0.04089314,141.19,141.16,0.05110482]
[1740845751753,0.04089314,141.19,141.18,7.0865]
[1740845752261,10.84,141.25,141.19,7.0859]
[1740845753259,10.84,141.25,141.18,7.0863]
[1740845753461,1.26791166,141.24,141.21,0.04775117]
[1740845753661,7.0845,141.22,141.16,7.0871]
[1740845753853,7.0845,141.22,141.18,0.0513968]
[1740845754161,10.84,141.25,141.18,0.0513968]
[1740845754360,7.0842,141.23,141.18,0.0513968]
[1740845755059,7.0842,141.23,141.18,7.1377968]
[1740845755651,10.84,141.25,141.18,7.1377968]
[1740845755855,7.0845,141.22,141.18,7.1377968]
[1740845756053,7.0845,141.22,141.18,0.0513968]
[1740845757955,7.0845,141.22,141.18,7.1378968]
[1740845758663,7.0851,141.21,141.18,0.0513968]
[1740845759368,10.84,141.25,141.18,7.1375968]
[1740845759558,1.26804341,141.24,141.18,0.0513968]
[1740845759865,10.92,141.24,141.18,7.1377968]
[1740845760159,10.92,141.24,141.18,0.0513968]
[1740845761356,7.0843,141.23,141.2,7.0854]
[1740845761767,8.0043,141.24,141.2,7.0854]
[1740845762664,7.0843,141.23,141.2,7.0854]
[1740845763164,7.0851,141.21,141.18,7.1378968]
[1740845763365,7.0851,141.21,141.18,0.0513968]
[1740845763963,8.0043,141.24,141.18,0.0513968]
[1740845764161,7.0856,141.2,141.18,0.0513968]
[1740845764359,8.0043,141.24,141.18,0.0513968]
[1740845764559,7.086,141.19,141.18,0.0513968]
[1740845765166,7.0859,141.2,141.18,0.0513968]
[1740845765459,3.7474,141.22,141.18,0.0513968]
[1740845765669,7.086,141.19,141.18,0.0513968]
[1740845768171,7.0867,141.18,141.14,7.0881]
[1740845768670,7.0867,141.18,141.12,157.35450667]
[1740845768671,1.8548,141.21,141.13,7.0888]
[1740845768863,7.0873,141.17,141.13,7.0888]
[1740845769466,0.0513968,141.16,141.14,0.0488782]
[1740845772165,7.1388968,141.16,141.14,0.0488782]
[1740845772366,0.0513968,141.16,141.14,0.0488782]
[1740845773171,7.1391968,141.16,141.14,0.0488782]
[1740845773567,0.0513968,141.16,141.14,0.0488782]
[1740845773763,3.7474,141.22,141.14,0.0488782]
[1740845773963,18.0039,141.24,141.14,0.0488782]
[1740845774364,18.0039,141.24,141.11,168.27450667]
[1740845774766,18.0039,141.24,141.2,7.0854]
[1740845775475,10.9,141.25,141.21,0.05090746]
[1740845775773,10.9,141.25,141.12,14.179]
[1740845775973,10.9,141.25,141.22,7.12920099]
[1740845776174,10.9,141.25,141.22,7.0842]
[1740845776364,10.9,141.25,141.22,7.13772945]
[1740845777567,7.0826,141.26,141.22,7.13772945]
[1740845777770,10.9,141.27,141.22,0.05352945]
[1740845778271,10.9,141.27,141.25,7.083]
[1740845778475,10.9,141.27,141.22,0.05352945]
[1740845778682,17.9823,141.27,141.23,7.0837]
[1740845778866,10.9,141.27,141.22,0.05352945]
[1740845779181,10.98,141.27,141.22,0.05352945]
[1740845779373,18.062,141.27,141.22,7.13772945]
[1740845779573,10.98,141.27,141.22,7.13772945]
[1740845779769,10.98,141.27,141.22,0.05352945]
[1740845779970,10.96,141.28,141.22,0.05352945]
[1740845780475,10.96,141.28,141.24,7.0835]
[1740845780668,117.8909171,141.38,141.22,0.05352945]
[1740845780870,18.05611696,141.37,141.21,11.0]
[1740845781077,1.26721696,141.36,141.29,0.04640056]
[1740845781266,11.0,141.35,141.29,0.04640056]
[1740845781462,7.0799,141.32,141.29,0.04640056]
[1740845781665,11.0,141.35,141.29,0.04640056]
[1740845781865,1.26723733,141.34,141.29,0.04640056]
[1740845782071,11.0,141.33,141.29,0.04640056]
[1740845783077,7.0798,141.32,141.29,0.04640056]
[1740845783276,11.0,141.33,141.29,0.04640056]
[1740845783480,11.02,141.33,141.29,0.04640056]
[1740845785474,7.0803,141.31,141.29,0.04640056]
[1740845785782,11.02,141.33,141.29,0.04640056]
[1740845786377,1.26717714,141.32,141.29,0.04640056]
[1740845786980,11.02,141.33,141.29,0.04640056]
[1740845787376,18.0992,141.33,141.29,0.04640056]
[1740845787674,11.02,141.33,141.29,0.04640056]
[1740845788081,7.0786,141.34,141.29,0.04640056]
[1740845788472,7.0794,141.33,141.29,0.04640056]
[1740845789068,5.7889,141.37,141.29,0.04640056]
[1740845789283,11.02,141.39,141.29,0.04640056]
[1740845789476,1.26668962,141.38,141.27,11.02]
[1740845789676,12.30668962,141.39,141.33,0.04480988]
[1740845789984,1.9838,141.4,141.33,0.04480988]
[1740845790175,1.26657311,141.39,141.33,0.04480988]
[1740845790378,13.0238,141.42,141.27,11.02]
[1740845790570,1.26649022,141.41,141.35,0.05389548]
[1740845790775,7.076,141.4,141.35,7.13159548]
[1740845791079,13.0238,141.42,141.35,7.13159548]
[1740845791273,11.04,141.42,141.38,7.0765]
[1740845791484,11.04,141.42,141.36,5.7404]
[1740845791782,11.04,141.42,141.39,0.05439906]
[1740845791984,18.1147,141.42,141.37,7.077]
[1740845792179,117.8909171,141.52,141.39,0.05395985]
[1740845792379,18.12482489,141.51,141.34,5.7404]
[1740845792579,1.26612489,141.5,141.44,0.04755895]
[1740845792779,1.26612489,141.5,141.34,5.7404]
[1740845792979,1.26612489,141.5,141.46,0.05032822]
[1740845793175,1.26612489,141.5,141.34,5.7404]
[1740845793587,7.0729,141.46,141.41,0.04839684]
[1740845793787,5.8187,141.51,141.38,11.06]
[1740845794083,12.32589021,141.5,141.42,0.05024371]
[1740845794288,1.26589021,141.49,141.34,16.8004]
[1740845795586,8.80046337,141.48,141.34,5.7404]
[1740845795778,0.04605734,141.43,141.4,0.05424914]
[1740845795977,0.04605734,141.43,141.27,299.63407744]
[1740845795978,11.08,141.42,141.27,299.63407744]
[1740845796178,5.08539021,141.41,141.28,5.88]
[1740845796379,7.0775,141.36,141.31,7.0796]
[1740845797190,7.0786,141.34,141.32,0.04716496]
[1740845797375,7.0786,141.34,141.3,7.0804]
[1740845797582,7.0786,141.34,141.32,0.04682406]
[1740845797786,7.13077982,141.34,141.32,0.04682406]
[1740845799291,7.079,141.33,141.32,0.04682406]
[1740845799793,7.13077982,141.34,141.32,0.04682406]
[1740845800891,7.079,141.33,141.32,0.04682406]
[1740845801890,0.05217982,141.34,141.24,157.35450667]
[1740845802191,11.1,141.37,141.24,164.43780667]
[1740845802192,1.26707542,141.36,141.24,164.43780667]
[1740845802394,7.0813,141.29,141.24,164.43780667]
[1740845802993,7.12843361,141.28,141.25,0.04739829]
[1740845804196,7.0821,141.27,141.25,0.04739829]
[1740845804383,0.04693361,141.28,141.25,0.04739829]
[1740845804582,7.0825,141.26,141.25,0.04739829]
[1740845804792,3.58693361,141.28,141.16,5.5757]
[1740845804994,1.26775047,141.27,141.16,5.5757]
[1740845805190,7.0855,141.2,141.16,12.663]
[1740845805389,7.0855,141.2,141.16,5.5757]
[1740845805785,7.0855,141.2,141.17,0.05156791]
[1740845805990,0.04522249,141.19,141.17,0.05156791]
[1740845807897,7.13142249,141.19,141.17,0.05156791]
[1740845808089,0.04522249,141.19,141.04,52.20917744]
[1740845808395,7.0879,141.16,141.09,7.0909]
[1740845808596,11.06,141.15,141.09,7.0909]
[1740845808795,11.06,141.15,141.12,7.0895]
[1740845809297,11.10877678,141.15,141.12,7.14099738]
[1740845809993,11.10877678,141.15,141.13,7.089]
[1740845811298,11.10877678,141.15,141.13,8.9334]
[1740845812098,0.04877678,141.15,141.13,1.8444]
[1740845812292,7.0852,141.21,141.15,7.0877]
[1740845812500,11.02,141.22,141.15,7.0877]
[1740845812702,11.02,141.22,141.09,168.37450667]
[1740845813003,7.0863,141.19,141.09,11.02]
[1740845813197,11.02,141.22,141.09,11.02]
[1740845813501,0.05019584,141.15,141.14,7.0885]
[1740845813695,11.02,141.22,141.13,0.0446875]
[1740845813904,0.05209681,141.16,141.13,0.0501142]
[1740845814088,7.0851,141.21,141.09,11.02]
[1740845814297,0.05114032,141.16,141.13,0.0458461]
[1740845814801,0.05114032,141.16,141.15,7.088]
[1740845815905,11.02,141.27,141.14,11.02]
[1740845816090,1.844,141.26,141.15,3.8316]
[1740845816294,1.844,141.26,141.24,7.0831]
[1740845816491,1.844,141.26,141.15,3.8316]
[1740845816793,8.9265,141.26,141.22,7.0843]
[1740845816995,0.05329292,141.22,141.19,0.04488187]
[1740845817195,8.9265,141.26,141.15,161.18610667]
[1740845817392,1.844,141.26,141.22,7.0845]
[1740845817592,7.0831,141.25,141.22,7.0845]
[1740845817793,0.04831099,141.25,141.23,0.04578558]
[1740845818102,1.844,141.26,141.23,7.084]
[1740845818305,0.05037255,141.25,141.23,0.04976983]
[1740845818697,0.05037255,141.25,141.23,7.13346983]
[1740845819598,0.05037255,141.25,141.23,0.04976983]
[1740845820094,0.05037255,141.25,141.23,7.13366983]
[1740845820296,0.05037255,141.25,141.23,0.04976983]
[1740845820607,7.0835,141.24,141.23,0.04976983]
[1740845820902,0.05037255,141.25,141.23,0.04976983]
[1740845821299,7.13367255,141.25,141.23,0.04976983]
[1740845821500,0.05037255,141.25,141.23,0.04976983]
[1740845821897,7.0847,141.22,141.15,161.18610667]
[1740845822096,10.98,141.23,141.15,161.18610667]
[1740845822499,18.0644,141.23,141.15,161.18610667]
[1740845822698,10.98,141.23,141.15,161.18610667]
[1740845823104,7.0863,141.19,141.18,0.04560895]
[1740845825294,7.0873,141.17,141.11,1.8926]
[1740845825901,7.0873,141.17,141.13,7.0887]
[1740845826105,10.96,141.18,141.11,1.8926]
[1740845826305,0.04795901,141.15,141.13,0.05064529]
[1740845827005,7.13625901,141.15,141.13,0.05064529]
[1740845827205,0.04795901,141.15,141.13,0.05064529]
[1740845827600,7.0885,141.14,141.13,0.05064529]
[1740845827902,0.04795901,141.15,141.13,0.05064529]
[1740845828104,7.0885,141.14,141.13,0.05064529]
[1740845829405,0.04795901,141.15,141.13,0.05064529]
[1740845830207,10.94,141.21,141.13,0.05064529]
[1740845830510,10.94,141.21,141.11,1.5384]
[1740845830710,10.94,141.21,141.19,7.0856]
[1740845831102,10.94,141.21,141.11,1.5384]
[1740845831409,10.99328229,141.21,141.19,0.05012466]
[1740845831611,10.94,141.21,141.11,1.5384]
[1740845831806,10.98908802,141.21,141.19,0.04746079]
[1740845832115,10.94,141.21,141.18,7.0861]
[1740845832313,10.9927526,141.21,141.19,0.04979262]
[1740845832615,10.94,141.21,141.11,158.89290667]
[1740845832804,10.98577265,141.21,141.19,0.04578739]
[1740845833003,10.94,141.21,141.11,158.89290667]
[1740845833207,10.98631184,141.21,141.19,0.04566407]
[1740845833409,10.99374044,141.21,141.19,0.05152579]
[1740845835403,10.99374044,141.21,141.19,7.13742579]
[1740845838117,10.99374044,141.21,141.19,0.05152579]
[1740845838511,18.07884044,141.21,141.19,0.05152579]
[1740845839606,7.0855,141.2,141.19,0.05152579]
[1740845839919,0.05374044,141.21,141.19,0.05152579]
[1740845840619,0.05374044,141.21,141.2,7.0855]
[1740845843627,0.05374044,141.21,141.19,0.05152579]
[1740845845526,0.05374044,141.21,141.19,7.13742579]
[1740845845714,0.05374044,141.21,141.19,0.05152579]
[1740845845909,7.13904044,141.21,141.19,0.05152579]
[1740845846115,18.11904044,141.21,141.19,0.05152579]
[1740845847324,11.03374044,141.21,141.19,0.05152579]
[1740845847528,7.0855,141.2,141.19,0.05152579]
[1740845847914,11.03374044,141.21,141.11,1.5384]
[1740845848115,10.98,141.21,141.13,7.0887]
[1740845848521,7.0874,141.17,141.13,7.0887]
[1740845848719,7.0874,141.17,141.1,42.96207744]
[1740845849016,10.98,141.21,141.12,7.0893]
[1740845849215,7.0879,141.16,141.12,7.0893]
[1740845849522,18.0479,141.16,141.15,0.04719531]
[1740845849723,10.96,141.16,141.11,7.0898]
[1740845849917,7.0881,141.15,141.14,0.04993369]
[1740845852133,7.089,141.13,141.09,7.0907]
[1740845853026,0.04742876,141.12,141.1,0.05132085]
[1740845853731,7.13742876,141.12,141.1,0.05132085]
[1740845853931,0.04742876,141.12,141.1,0.05132085]
[1740845854235,7.13702876,141.12,141.1,0.05132085]
[1740845855428,7.09,141.11,141.1,0.05132085]
[1740845855625,7.09,141.11,141.05,2.60862908]
[1740845856015,18.03,141.11,141.05,2.60862908]
[1740845856219,18.03,141.11,141.06,7.0921]
[1740845856522,10.94,141.11,141.05,2.60862908]
[1740845856830,10.94,141.11,141.07,7.14059884]
[1740845857819,18.0304,141.11,141.07,7.14059884]
[1740845858727,7.0906,141.1,141.07,7.14059884]
[1740845859030,10.94,141.11,141.07,0.04889884]
[1740845859326,7.0906,141.1,141.07,0.04889884]
[1740845859527,10.94,141.11,141.07,0.04889884]
[1740845860029,10.94,141.11,141.08,7.0914]
[1740845860225,10.94,141.11,141.07,0.04889884]
[1740845860417,0.04742876,141.12,141.11,7.09]
[1740845860615,0.04742876,141.12,141.03,94.67280192]
[1740845860819,10.92,141.14,141.1,0.04927514]
[1740845861026,0.05308367,141.09,141.08,7.0912]
[1740845861226,0.05061643,141.1,141.04,1.694]
[1740845861534,0.05061643,141.1,141.07,0.05440795]
[1740845861737,0.05061643,141.1,141.07,7.14610795]
[1740845862033,0.05061643,141.1,141.07,0.05440795]
[1740845862230,7.14141643,141.1,141.07,0.05440795]
[1740845863727,7.0911,141.09,141.07,0.05440795]
[1740845863935,0.05061643,141.1,141.07,0.05440795]
[1740845864334,7.14131643,141.1,141.07,0.05440795]
[1740845865335,0.05061643,141.1,141.07,0.05440795]
[1740845865830,0.05061643,141.1,141.08,7.0915]
[1740845866026,0.05061643,141.1,141.07,0.05440795]
[1740845866426,0.05061643,141.1,141.07,7.14610795]
[1740845866626,0.05061643,141.1,141.07,0.05440795]
[1740845867136,7.0915,141.08,141.07,0.05440795]
[1740845867339,0.05061643,141.1,141.07,0.05440795]
[1740845867725,7.0914,141.09,141.07,0.05440795]
[1740845868140,0.05061643,141.1,141.07,0.05440795]
[1740845868332,7.0915,141.08,141.07,0.05440795]
[1740845868527,10.86,141.09,141.03,94.67280192]
[1740845868736,12.8597,141.09,141.03,94.67280192]
[1740845869440,7.0923,141.07,141.04,7.0933]
[1740845869640,0.0529938,141.07,141.04,7.14619064]
[1740845869830,7.0928,141.06,141.04,0.05289064]
[1740845870230,0.0529938,141.07,141.04,0.05289064]
[1740845870435,0.0529938,141.07,141.06,7.0925]
[1740845870935,0.0529938,141.07,141.05,7.0928]
[1740845871334,0.0529938,141.07,141.04,0.05289064]
[1740845871838,0.0529938,141.07,141.06,7.0925]
[1740845872233,0.0529938,141.07,141.04,0.05289064]
[1740845873142,7.0928,141.06,141.04,0.05289064]
[1740845874041,0.0529938,141.07,141.04,7.14639064]
[1740845874231,0.0529938,141.07,141.04,0.05289064]
[1740845874643,0.0529938,141.07,141.05,7.0927]
[1740845876940,0.0529938,141.07,141.04,0.05289064]
[1740845877849,0.0529938,141.07,141.05,7.0928]
[1740845878350,0.0529938,141.07,141.04,0.05289064]
[1740845878648,7.0929,141.06,141.04,0.05289064]
[1740845879552,7.0929,141.06,141.04,7.14619064]
[1740845879743,7.0925,141.06,141.04,0.05289064]
[1740845880150,7.0925,141.06,141.04,7.14619064]
[1740845880350,7.1452938,141.07,141.04,0.05289064]
[1740845880549,7.1452938,141.07,141.05,7.093]
[1740845881050,7.1452938,141.07,141.04,0.05289064]
[1740845881451,7.0926,141.06,141.04,7.14629064]
[1740845882150,7.0926,141.06,141.04,0.05289064]
[1740845882650,7.1452938,141.07,141.04,7.14599064]
[1740845883149,0.0529938,141.07,141.04,7.14599064]
[1740845883351,7.0928,141.06,141.04,0.05289064]
[1740845885048,0.0529938,141.07,141.04,0.05289064]
[1740845887552,1.8786,141.13,141.04,0.05289064]
[1740845887752,1.883,141.15,141.03,157.35450667]
[1740845887753,10.8,141.14,141.03,157.35450667]
[1740845888356,10.78,141.15,141.11,7.0899]
[1740845888657,0.04950736,141.14,141.12,0.04613135]
[1740845889555,0.04950736,141.14,141.08,7.0914]
[1740845889760,1.26884702,141.15,141.03,157.35450667]
[1740845890144,7.0898,141.12,141.07,7.0918]
[1740845890349,10.82,141.11,141.07,7.0918]
[1740845890544,1.9028,141.14,141.03,157.35450667]
[1740845890758,0.04512229,141.1,141.08,7.13882382]
[1740845891258,0.04512229,141.1,141.09,7.091]
[1740845894760,0.04512229,141.1,141.08,0.04752382]
[1740845896865,7.13562229,141.1,141.08,0.04752382]
[1740845897366,283.0396571,141.09,141.0,36.18407744]
[1740845897553,1.2696571,141.08,141.0,36.18407744]
[1740845897759,1.41773587,141.07,141.0,36.18407744]
[1740845898059,1.2696571,141.06,140.99,9.79851936]
[1740845898364,7.094,141.03,141.02,0.05251543]
[1740845898566,17.994,141.03,141.02,0.05251543]
[1740845899566,7.0956,141.0,140.99,9.79851936]
[1740845899756,7.0956,141.0,140.99,6.78671936]
[1740845900068,7.0956,141.0,140.99,3.77491936]
[1740845901256,0.0488659,141.01,140.98,0.05084486]
[1740845901867,7.0961,140.99,140.98,0.05084486]
[1740845905265,7.0961,140.99,140.98,4.486e-05]
[1740845909458,7.0958,141.0,140.98,4.486e-05]
[1740845909865,0.0488659,141.01,140.98,4.486e-05]
[1740845910172,7.0961,140.99,140.98,4.486e-05]
[1740845911476,10.6361,140.99,140.98,4.486e-05]
[1740845912773,8.36630215,140.99,140.98,4.486e-05]
[1740845914775,7.0961,140.99,140.98,4.486e-05]
[1740845918472,8.36629613,140.99,140.98,4.486e-05]
[1740845920276,8.36633701,140.99,140.98,4.486e-05]
[1740845921986,0.0488659,141.01,140.98,4.486e-05]
[1740845922370,0.0488659,141.01,140.99,7.096]
[1740845922775,0.0488659,141.01,140.98,4.486e-05]
[1740845922965,0.0488659,141.01,141.0,7.0956]
[1740845923171,10.84,141.04,140.99,3.7577]
[1740845923778,7.0929,141.06,141.01,7.0947]
[1740845923972,17.9129,141.06,141.01,7.0947]
[1740845924173,10.82,141.06,141.01,7.0947]
[1740845924382,0.05360805,141.05,141.02,0.04533399]
[1740845925082,7.14690805,141.05,141.02,0.04533399]
[1740845925584,7.0938,141.04,141.02,0.04533399]
[1740845926887,0.05360805,141.05,141.02,0.04533399]
[1740845927789,0.05360805,141.05,141.03,7.094]
[1740845928283,0.05360805,141.05,141.04,7.0935]
[1740845929300,1.8604,141.11,141.02,0.04533399]
[1740845929494,12.10930852,141.1,141.05,7.093]
[1740845929787,1.8604,141.11,140.99,5.6585]
[1740845929788,10.84,141.09,140.99,5.6585]
[1740845930188,7.0918,141.08,140.99,5.6585]
[1740845930496,0.05244153,141.05,141.04,7.0935]
[1740845931191,246.02241521,141.2,141.05,7.093]
[1740845931379,12.10910086,141.14,140.99,16.4985]
[1740845931579,1.26910086,141.13,140.99,16.4985]
[1740845931783,7.0911,141.09,140.99,16.4985]
[1740845932288,0.05435787,141.05,141.04,7.0935]
[1740845932589,3.8142,141.17,140.99,18.1377]
[1740845932889,1.26894271,141.15,140.99,14.5977]
[1740845933279,7.0897,141.12,140.99,14.5977]
[1740845933693,0.05110241,141.07,141.04,0.04927154]
[1740845933885,7.0897,141.12,141.08,7.0912]
[1740845934084,7.0897,141.12,141.04,10.88927154]
[1740845934085,10.84,141.16,141.04,10.84]
[1740845934287,1.26881724,141.15,141.05,7.0927]
[1740845934490,10.84,141.16,141.05,7.0927]
[1740845934686,1.26886747,141.15,140.99,159.29990667]
[1740845934889,8.67246644,141.15,140.99,159.29990667]
[1740845935086,0.0470738,141.08,141.06,0.05275526]
[1740845935284,7.0933,141.05,141.01,7.0949]
[1740845935679,7.0933,141.05,141.02,0.04767223]
[1740845935879,7.14242131,141.04,141.02,0.04767223]
[1740845939396,0.04882131,141.04,141.02,0.04767223]
[1740845939692,10.84,141.07,141.02,0.04767223]
[1740845940390,7.0929,141.06,141.02,0.04767223]
[1740845940585,10.84,141.07,141.02,0.04767223]
[1740845940786,0.04697474,141.05,141.03,7.0936]
[1740845940988,0.04697474,141.05,141.02,0.04767223]
[1740845941490,10.94,141.08,141.02,0.04767223]
[1740845941796,7.0923,141.07,141.04,7.0933]
[1740845941995,1.8599,141.11,141.0,1.9031]
[1740845942194,10.94,141.1,141.0,1.9031]
[1740845942394,10.94,141.14,141.0,12.8431]
[1740845942698,8.546e-05,141.06,141.04,0.05024133]
[1740845942891,8.546e-05,141.06,141.05,7.093]
[1740845943095,10.94,141.14,141.05,1.9687]
[1740845943598,10.94,141.14,141.1,7.0903]
[1740845943792,0.05154765,141.11,141.08,0.05213561]
[1740845943991,0.05154765,141.11,141.09,7.0906]
[1740845944495,0.05154765,141.11,141.08,0.05213561]
[1740845945499,7.0905,141.1,141.08,0.05213561]
[1740845945703,0.05154765,141.11,141.08,0.05213561]
[1740845946395,7.091,141.09,141.08,3.561e-05]
[1740845946599,18.011,141.09,141.08,3.561e-05]
[1740845947386,19.28039617,141.09,141.08,3.561e-05]
[1740845948792,22.82039617,141.09,141.08,3.561e-05]
[1740845949099,19.28039617,141.09,141.08,3.561e-05]
[1740845950794,22.82039617,141.09,141.08,3.561e-05]
[1740845951004,273.95793107,141.09,141.08,3.561e-05]
[1740845952099,14.1846,141.07,140.91,3.6448]
[1740845952305,14.1846,141.07,140.91,5.6481]
[1740845952603,3.16858589,141.06,140.91,5.6481]
[1740845952805,1.26998589,141.05,140.93,7.099]
[1740845953001,10.9,141.04,140.93,7.099]
[1740845953204,0.04985542,141.0,140.98,0.05446356]
[1740845953511,10.9,140.99,140.98,0.05446356]
[1740845956909,0.04985542,141.0,140.98,0.05446356]
[1740845957202,10.9,141.04,140.98,0.05446356]
[1740845957399,10.9,141.04,140.99,7.0957]
[1740845957704,10.9,141.04,140.98,0.05446356]
[1740845957899,7.0953,141.01,140.98,0.05446356]
[1740845958106,10.9,141.04,140.98,0.05446356]
[1740845958404,0.04770617,141.01,140.98,0.05446356]
[1740845958594,7.14300617,141.01,140.98,0.05446356]
[1740845959105,0.04770617,141.01,140.98,0.05446356]
[1740845959696,0.04770617,141.01,141.0,7.0956]
[1740845960103,0.04770617,141.01,140.98,0.05446356]
[1740845960698,0.04770617,141.01,140.98,7.15076356]
[1740845961102,0.04770617,141.01,140.98,0.05446356]
[1740845962608,0.04770617,141.01,140.99,7.0959]
[1740845963509,7.14280617,141.01,140.98,0.05446356]
[1740845966211,7.0961,140.99,140.98,0.05446356]
[1740845968018,1.8696,141.0,140.98,0.05446356]
[1740845968314,0.04770617,141.01,140.98,0.05446356]
[1740845969318,0.04770617,141.01,140.99,7.0961]
[1740845974329,0.04770617,141.01,141.0,7.0956]
[1740845976220,0.04770617,141.01,140.99,7.0958]
[1740845976415,0.04770617,141.01,140.98,0.05446356]
[1740845976813,7.14300617,141.01,140.98,0.05446356]
[1740845978022,0.04770617,141.01,140.98,0.05446356]
[1740845978814,7.0956,141.0,140.98,0.05446356]
[1740845979219,0.04770617,141.01,140.98,0.05446356]
[1740845980325,7.0958,141.0,140.98,0.05446356]
[1740845980928,0.04770617,141.01,140.98,0.05446356]
[1740845981126,7.14280617,141.01,140.98,0.05446356]
[1740845981717,7.0956,141.0,140.98,0.05446356]
[1740845982017,10.82,140.99,140.98,0.05446356]
[1740845982624,17.9161,140.99,140.98,0.05446356]
[1740845984923,7.0977,140.96,140.92,7.0994]
[1740845985419,7.0977,140.96,140.92,7.0993]
[1740845986025,0.04907526,140.95,140.93,0.04964284]
[1740845986228,0.04907526,140.95,140.93,7.14844284]
[1740845986415,0.04907526,140.95,140.93,0.04964284]
[1740845987430,0.04907526,140.95,140.93,7.14864284]
[1740845987929,7.0986,140.94,140.93,0.04964284]
[1740845988123,17.8786,140.94,140.93,0.04964284]
[1740845988925,10.78,140.94,140.84,38.60724012]
[1740845989118,1.844,140.93,140.84,38.60724012]
[1740845989432,7.1003,140.91,140.84,38.60724012]
[1740845989631,1.844,140.93,140.84,38.60724012]
[1740845989930,10.78,140.94,140.84,38.60724012]
[1740845990135,0.04863714,140.9,140.87,0.04620052]
[1740845990339,0.04863714,140.9,140.89,7.1011]
[1740845991233,10.78,140.94,140.93,7.0991]
[1740845991738,10.78,140.94,140.84,14.2073]